[Event "Titled Tuesday Blitz July 13 2021"]
[White "Tristan, Leonardo"]
[Black "Dobrowolski, Piotr"]
[WhiteFideId "113816"]
[BlackFideId "1106236"]
[WhiteElo "2404"]
[BlackElo "2304"]
[Result "1-0"]
[Round "05"]
[TimeControl "180+1"]
[Date "2021.07.13"]
[WhiteClock "0:00:13"]
[BlackClock "0:00:09"]

1. d4 {[%clk 0:02:14]}  e6 {[%clk 0:02:58]} 2. Nf3 {[%clk 0:02:13]}  c5 {[%clk 0:02:58]} 3. c3 {[%clk 0:02:13]}  d5 {[%clk 0:02:57]} 4. Bf4 {[%clk 0:02:12]}  Nf6 {[%clk 0:02:56]} 5. e3 {[%clk 0:02:13]}  Bd6 {[%clk 0:02:55]} 6. Bb5+ {[%clk 0:02:13]}  Nc6 {[%clk 0:02:52]} 7. Bg3 {[%clk 0:02:13]}  O-O {[%clk 0:02:49]} 8. Nbd2 {[%clk 0:02:13]}  Qe7 {[%clk 0:02:36]} 9. Bxc6 {[%clk 0:02:11]}  bxc6 {[%clk 0:02:36]} 10. Qa4 {[%clk 0:02:12]}  cxd4 {[%clk 0:02:27]} 11. Bxd6 {[%clk 0:02:06]}  Qxd6 {[%clk 0:02:26]} 12. cxd4 {[%clk 0:02:07]}  Rb8 {[%clk 0:02:09]} 13. Nb3 {[%clk 0:02:06]}  Qb4+ {[%clk 0:01:19]} 14. Qxb4 {[%clk 0:02:06]}  Rxb4 {[%clk 0:01:20]} 15. Ne5 {[%clk 0:01:25]}  Ba6 {[%clk 0:01:20]} 16. Nxc6 {[%clk 0:01:15]}  Rc4 {[%clk 0:01:13]} 17. Rc1 {[%clk 0:01:14]}  Rxc1+ {[%clk 0:00:57]} 18. Nxc1 {[%clk 0:01:14]}  Bb7 {[%clk 0:00:58]} 19. Na5 {[%clk 0:00:35]}  Rc8 {[%clk 0:00:57]} 20. Nd3 {[%clk 0:00:36]}  Ba6 {[%clk 0:00:53]} 21. Nc5 {[%clk 0:00:36]}  e5 {[%clk 0:00:37]} 22. Kd2 {[%clk 0:00:31]}  exd4 {[%clk 0:00:31]} 23. exd4 {[%clk 0:00:32]}  Bb5 {[%clk 0:00:20]} 24. f3 {[%clk 0:00:29]}  h5 {[%clk 0:00:19]} 25. Rc1 {[%clk 0:00:28]}  h4 {[%clk 0:00:19]} 26. a4 {[%clk 0:00:25]}  Be8 {[%clk 0:00:17]} 27. b4 {[%clk 0:00:22]}  Nh5 {[%clk 0:00:17]} 28. b5 {[%clk 0:00:22]}  Nf4 {[%clk 0:00:17]} 29. g3 {[%clk 0:00:23]}  hxg3 {[%clk 0:00:17]} 30. hxg3 {[%clk 0:00:23]}  Nh5 {[%clk 0:00:18]} 31. g4 {[%clk 0:00:24]}  Nf6 {[%clk 0:00:15]} 32. Nd3 {[%clk 0:00:17]}  Rb8 {[%clk 0:00:14]} 33. Nc6 {[%clk 0:00:16]}  Bxc6 {[%clk 0:00:14]} 34. Rxc6 {[%clk 0:00:17]}  Kf8 {[%clk 0:00:12]} 35. Nb4 {[%clk 0:00:17]}  Ke7 {[%clk 0:00:12]} 36. g5 {[%clk 0:00:18]}  Ne8 {[%clk 0:00:12]} 37. Nxd5+ {[%clk 0:00:18]}  Kd7 {[%clk 0:00:13]} 38. Ra6 {[%clk 0:00:16]}  Rb7 {[%clk 0:00:13]} 39. Nb4 {[%clk 0:00:15]}  Nd6 {[%clk 0:00:13]} 40. Nc6 {[%clk 0:00:14]}  f6 {[%clk 0:00:11]} 41. gxf6 {[%clk 0:00:14]}  gxf6 {[%clk 0:00:12]} 42. Rxa7 {[%clk 0:00:14]}  Rxa7 {[%clk 0:00:12]} 43. Nxa7 {[%clk 0:00:15]}  Nc4+ {[%clk 0:00:12]} 44. Kc3 {[%clk 0:00:14]}  Nb6 {[%clk 0:00:12]} 45. a5 {[%clk 0:00:15]}  Nd5+ {[%clk 0:00:13]} 46. Kc4 {[%clk 0:00:14]}  Ne3+ {[%clk 0:00:13]} 47. Kc5 {[%clk 0:00:14]}  Nc2 {[%clk 0:00:11]} 48. b6 {[%clk 0:00:14]}  Ne1 {[%clk 0:00:11]} 49. b7 {[%clk 0:00:13]}  Kc7 {[%clk 0:00:10]} 50. a6 {[%clk 0:00:14]}  Nd3+ {[%clk 0:00:10]} 51. Kc4 {[%clk 0:00:14]}  Nb2+ {[%clk 0:00:08]} 52. Kb3 {[%clk 0:00:13]}  Nd3 {[%clk 0:00:09]} 53. Nc6 {[%clk 0:00:13]} 1-0


[Site "https://www.chess.com"]

[Event "Titled Tuesday Blitz July 13 2021"]
[White "Vasquez Schroeder, Rodrigo"]
[Black "Nozdrachev, Leonid"]
[WhiteFideId "3400042"]
[BlackFideId "24113433"]
[WhiteElo "2572"]
[BlackElo "2221"]
[Result "1-0"]
[Round "05"]
[TimeControl "180+1"]
[Date "2021.07.13"]
[WhiteClock "0:00:38"]
[BlackClock "0:01:03"]

1. e4 {[%clk 0:02:35]}  d6 {[%clk 0:02:59]} 2. d4 {[%clk 0:02:27]}  Nf6 {[%clk 0:02:59]} 3. Nc3 {[%clk 0:02:21]}  e5 {[%clk 0:03:00]} 4. Nf3 {[%clk 0:02:21]}  Nbd7 {[%clk 0:02:59]} 5. Bc4 {[%clk 0:02:21]}  Be7 {[%clk 0:02:59]} 6. O-O {[%clk 0:02:22]}  O-O {[%clk 0:03:00]} 7. a4 {[%clk 0:02:19]}  c6 {[%clk 0:02:59]} 8. Ba2 {[%clk 0:02:14]}  Qc7 {[%clk 0:02:59]} 9. h3 {[%clk 0:02:10]}  Re8 {[%clk 0:02:59]} 10. a5 {[%clk 0:02:02]}  Nf8 {[%clk 0:02:59]} 11. Re1 {[%clk 0:02:00]}  Ng6 {[%clk 0:02:58]} 12. Be3 {[%clk 0:01:58]}  Rf8 {[%clk 0:02:56]} 13. Qd2 {[%clk 0:01:53]}  Nh5 {[%clk 0:02:55]} 14. Bc4 {[%clk 0:01:49]}  Nhf4 {[%clk 0:02:49]} 15. Bf1 {[%clk 0:01:47]}  f5 {[%clk 0:02:44]} 16. exf5 {[%clk 0:01:45]}  Bxf5 {[%clk 0:02:45]} 17. dxe5 {[%clk 0:01:45]}  dxe5 {[%clk 0:02:45]} 18. Bxf4 {[%clk 0:01:36]}  exf4 {[%clk 0:02:42]} 19. Bc4+ {[%clk 0:01:30]}  Kh8 {[%clk 0:02:41]} 20. Be6 {[%clk 0:01:30]}  Rad8 {[%clk 0:02:37]} 21. Qe2 {[%clk 0:01:30]}  Bb4 {[%clk 0:02:31]} 22. Bxf5 {[%clk 0:01:30]}  Rxf5 {[%clk 0:02:32]} 23. a6 {[%clk 0:01:21]}  b5 {[%clk 0:02:27]} 24. Qe4 {[%clk 0:01:21]}  Bxc3 {[%clk 0:02:23]} 25. Qxf5 {[%clk 0:01:20]}  Bxe1 {[%clk 0:02:22]} 26. Rxe1 {[%clk 0:01:21]}  Rf8 {[%clk 0:02:18]} 27. Qh5 {[%clk 0:01:12]}  Ne7 {[%clk 0:01:55]} 28. Ng5 {[%clk 0:01:08]}  h6 {[%clk 0:01:47]} 29. Ne6 {[%clk 0:01:06]}  Qa5 {[%clk 0:01:43]} 30. c3 {[%clk 0:00:57]}  Rg8 {[%clk 0:01:22]} 31. Nxf4 {[%clk 0:00:50]}  Nd5 {[%clk 0:01:12]} 32. Ng6+ {[%clk 0:00:48]}  Kh7 {[%clk 0:01:12]} 33. Qf5 {[%clk 0:00:48]}  Rd8 {[%clk 0:01:06]} 34. Ne5+ {[%clk 0:00:42]}  Kg8 {[%clk 0:01:03]} 35. Nxc6 {[%clk 0:00:38]} 1-0


[Site "https://www.chess.com"]

[Event "Titled Tuesday Blitz July 13 2021"]
[White "Wong, Yinn Long"]
[Black "Liu, Manli"]
[WhiteFideId "5707684"]
[BlackFideId "8608121"]
[WhiteElo "2016"]
[BlackElo "2061"]
[Result "1-0"]
[Round "05"]
[TimeControl "180+1"]
[Date "2021.07.13"]
[WhiteClock "0:00:06"]
[BlackClock "0:00:08"]

1. e4 {[%clk 0:03:00]}  e6 {[%clk 0:02:58]} 2. d4 {[%clk 0:03:00]}  d5 {[%clk 0:02:59]} 3. Nc3 {[%clk 0:03:00]}  Nf6 {[%clk 0:02:58]} 4. Bg5 {[%clk 0:02:59]}  dxe4 {[%clk 0:02:58]} 5. Nxe4 {[%clk 0:02:59]}  Nbd7 {[%clk 0:02:58]} 6. Nf3 {[%clk 0:02:58]}  h6 {[%clk 0:02:55]} 7. Nxf6+ {[%clk 0:02:56]}  Nxf6 {[%clk 0:02:56]} 8. Bxf6 {[%clk 0:02:55]}  Qxf6 {[%clk 0:02:55]} 9. Bb5+ {[%clk 0:02:56]}  c6 {[%clk 0:02:54]} 10. Bd3 {[%clk 0:02:56]}  Bd6 {[%clk 0:02:52]} 11. Qe2 {[%clk 0:02:54]}  O-O {[%clk 0:02:36]} 12. O-O-O {[%clk 0:02:52]}  c5 {[%clk 0:02:36]} 13. dxc5 {[%clk 0:02:51]}  Bxc5 {[%clk 0:02:37]} 14. Qe4 {[%clk 0:02:50]}  g6 {[%clk 0:02:36]} 15. h4 {[%clk 0:02:46]}  Bd7 {[%clk 0:02:11]} 16. Ne5 {[%clk 0:02:39]}  Bc6 {[%clk 0:02:05]} 17. Nxc6 {[%clk 0:02:30]}  bxc6 {[%clk 0:02:05]} 18. h5 {[%clk 0:02:26]}  Rab8 {[%clk 0:01:55]} 19. c3 {[%clk 0:01:26]}  Qxf2 {[%clk 0:00:50]} 20. b4 {[%clk 0:01:12]}  Qe3+ {[%clk 0:00:46]} 21. Kc2 {[%clk 0:01:10]}  Qxe4 {[%clk 0:00:43]} 22. Bxe4 {[%clk 0:01:10]}  Be3 {[%clk 0:00:43]} 23. hxg6 {[%clk 0:01:08]}  fxg6 {[%clk 0:00:40]} 24. Bxg6 {[%clk 0:01:07]}  Rf2+ {[%clk 0:00:39]} 25. Kb3 {[%clk 0:01:07]}  Rxg2 {[%clk 0:00:39]} 26. Be4 {[%clk 0:01:04]}  Rg3 {[%clk 0:00:38]} 27. Bxc6 {[%clk 0:01:01]}  Bf4 {[%clk 0:00:33]} 28. Rhe1 {[%clk 0:00:56]}  e5 {[%clk 0:00:32]} 29. Rd7 {[%clk 0:00:52]}  Rc8 {[%clk 0:00:28]} 30. b5 {[%clk 0:00:51]}  a6 {[%clk 0:00:27]} 31. a4 {[%clk 0:00:49]}  axb5 {[%clk 0:00:26]} 32. axb5 {[%clk 0:00:50]}  Kf8 {[%clk 0:00:23]} 33. Ra1 {[%clk 0:00:43]}  e4 {[%clk 0:00:18]} 34. Raa7 {[%clk 0:00:40]}  Be5 {[%clk 0:00:18]} 35. Rf7+ {[%clk 0:00:40]}  Kg8 {[%clk 0:00:18]} 36. Kc4 {[%clk 0:00:20]}  Bxc3 {[%clk 0:00:13]} 37. Rac7 {[%clk 0:00:15]}  Rxc7 {[%clk 0:00:13]} 38. Rxc7 {[%clk 0:00:16]}  Be5 {[%clk 0:00:12]} 39. Re7 {[%clk 0:00:15]}  Bf6 {[%clk 0:00:12]} 40. Rxe4 {[%clk 0:00:13]}  Kg7 {[%clk 0:00:12]} 41. b6 {[%clk 0:00:11]}  Rg1 {[%clk 0:00:10]} 42. b7 {[%clk 0:00:11]}  Rc1+ {[%clk 0:00:10]} 43. Kd5 {[%clk 0:00:08]}  Rd1+ {[%clk 0:00:10]} 44. Kc5 {[%clk 0:00:06]}  Rc1+ {[%clk 0:00:10]} 45. Kd6 {[%clk 0:00:07]}  Rb1 {[%clk 0:00:10]} 46. Kc7 {[%clk 0:00:07]}  Bh4 {[%clk 0:00:08]} 47. Rxh4 {[%clk 0:00:07]}  Kg6 {[%clk 0:00:08]} 48. Be4+ {[%clk 0:00:06]} 1-0


[Site "https://www.chess.com"]

[Event "Titled Tuesday Blitz July 13 2021"]
[White "Woodward, Andy"]
[Black "Kim, Sergey"]
[WhiteFideId "30953499"]
[BlackFideId "13700570"]
[WhiteElo "2137"]
[BlackElo "2495"]
[Result "1-0"]
[Round "05"]
[TimeControl "180+1"]
[Date "2021.07.13"]
[WhiteClock "0:00:51"]
[BlackClock "0:01:11"]

1. d4 {[%clk 0:03:00]}  Nf6 {[%clk 0:02:59]} 2. c4 {[%clk 0:03:00]}  g6 {[%clk 0:02:59]} 3. Nc3 {[%clk 0:03:00]}  Bg7 {[%clk 0:02:59]} 4. g3 {[%clk 0:03:01]}  d6 {[%clk 0:02:59]} 5. Bg2 {[%clk 0:03:02]}  O-O {[%clk 0:02:59]} 6. Nf3 {[%clk 0:03:02]}  Nbd7 {[%clk 0:02:59]} 7. O-O {[%clk 0:03:03]}  e5 {[%clk 0:02:59]} 8. e4 {[%clk 0:03:03]}  exd4 {[%clk 0:03:00]} 9. Nxd4 {[%clk 0:03:03]}  Re8 {[%clk 0:03:00]} 10. h3 {[%clk 0:03:02]}  Nc5 {[%clk 0:03:00]} 11. Re1 {[%clk 0:03:03]}  c6 {[%clk 0:03:00]} 12. Qc2 {[%clk 0:02:59]}  a5 {[%clk 0:02:59]} 13. Be3 {[%clk 0:02:58]}  a4 {[%clk 0:02:58]} 14. Rad1 {[%clk 0:02:57]}  Qa5 {[%clk 0:02:58]} 15. f4 {[%clk 0:02:34]}  Nfd7 {[%clk 0:02:54]} 16. Bf2 {[%clk 0:02:31]}  Nb6 {[%clk 0:02:52]} 17. b3 {[%clk 0:02:17]}  Qb4 {[%clk 0:02:47]} 18. Ra1 {[%clk 0:02:02]}  axb3 {[%clk 0:02:38]} 19. axb3 {[%clk 0:02:01]}  Rxa1 {[%clk 0:02:37]} 20. Rxa1 {[%clk 0:02:02]}  Nbd7 {[%clk 0:02:20]} 21. Ra8 {[%clk 0:01:57]}  Qb6 {[%clk 0:01:58]} 22. Na4 {[%clk 0:01:50]}  Nxa4 {[%clk 0:01:57]} 23. Ne6 {[%clk 0:01:45]}  Nac5 {[%clk 0:01:56]} 24. Nxg7 {[%clk 0:01:39]}  Kxg7 {[%clk 0:01:55]} 25. Qc3+ {[%clk 0:01:37]}  Kg8 {[%clk 0:01:55]} 26. b4 {[%clk 0:01:23]}  Nxe4 {[%clk 0:01:45]} 27. Bxe4 {[%clk 0:01:22]}  c5 {[%clk 0:01:45]} 28. Bd5 {[%clk 0:01:12]}  cxb4 {[%clk 0:01:28]} 29. Qb2 {[%clk 0:01:09]}  Nc5 {[%clk 0:01:27]} 30. Qf6 {[%clk 0:00:56]}  Qd8 {[%clk 0:01:12]} 31. Qxf7+ {[%clk 0:00:51]}  Kh8 {[%clk 0:01:11]} 32. Bd4+ {[%clk 0:00:51]} 1-0


[Site "https://www.chess.com"]

[Event "Titled Tuesday Blitz July 13 2021"]
[White "Yanchenko, Roman"]
[Black "Musovic, Armin"]
[WhiteFideId "4137329"]
[BlackFideId "939935"]
[WhiteElo "2514"]
[BlackElo "2250"]
[Result "1-0"]
[Round "05"]
[TimeControl "180+1"]
[Date "2021.07.13"]
[WhiteClock "0:00:11"]
[BlackClock "0:00:03"]

1. d4 {[%clk 0:02:54]}  d5 {[%clk 0:02:54]} 2. c4 {[%clk 0:02:15]}  c5 {[%clk 0:02:51]} 3. dxc5 {[%clk 0:02:10]}  e6 {[%clk 0:02:51]} 4. cxd5 {[%clk 0:02:08]}  Bxc5 {[%clk 0:02:50]} 5. e3 {[%clk 0:02:04]}  exd5 {[%clk 0:02:50]} 6. Nc3 {[%clk 0:02:04]}  Nf6 {[%clk 0:02:50]} 7. Nf3 {[%clk 0:02:04]}  O-O {[%clk 0:02:50]} 8. Be2 {[%clk 0:02:05]}  Nc6 {[%clk 0:02:51]} 9. O-O {[%clk 0:02:05]}  a6 {[%clk 0:02:50]} 10. b3 {[%clk 0:02:04]}  Re8 {[%clk 0:02:51]} 11. Bb2 {[%clk 0:02:04]}  Ba7 {[%clk 0:02:51]} 12. Qd2 {[%clk 0:02:02]}  Bg4 {[%clk 0:02:50]} 13. Rfd1 {[%clk 0:02:01]}  Be6 {[%clk 0:02:18]} 14. h3 {[%clk 0:01:59]}  h6 {[%clk 0:02:18]} 15. Bf1 {[%clk 0:01:55]}  Rc8 {[%clk 0:02:18]} 16. Rac1 {[%clk 0:01:53]}  Qa5 {[%clk 0:02:17]} 17. a3 {[%clk 0:01:40]}  Ne4 {[%clk 0:02:15]} 18. Qd3 {[%clk 0:01:24]}  Ne7 {[%clk 0:01:54]} 19. b4 {[%clk 0:00:57]}  Qb6 {[%clk 0:01:05]} 20. Nxe4 {[%clk 0:00:54]}  dxe4 {[%clk 0:01:06]} 21. Qxe4 {[%clk 0:00:55]}  Rxc1 {[%clk 0:01:02]} 22. Rxc1 {[%clk 0:00:56]}  Qd8 {[%clk 0:00:55]} 23. Nd4 {[%clk 0:00:53]}  Bd5 {[%clk 0:00:49]} 24. Qg4 {[%clk 0:00:51]}  Ng6 {[%clk 0:00:49]} 25. Nf5 {[%clk 0:00:45]}  Re4 {[%clk 0:00:47]} 26. Qg3 {[%clk 0:00:44]}  Bb8 {[%clk 0:00:47]} 27. f4 {[%clk 0:00:41]}  Bc6 {[%clk 0:00:23]} 28. Bc4 {[%clk 0:00:18]}  Kh7 {[%clk 0:00:21]} 29. Bxf7 {[%clk 0:00:17]}  Re6 {[%clk 0:00:06]} 30. Bxe6 {[%clk 0:00:16]}  Qd2 {[%clk 0:00:07]} 31. Bf7 {[%clk 0:00:14]}  Qxg2+ {[%clk 0:00:03]} 32. Qxg2 {[%clk 0:00:13]}  Bxg2 {[%clk 0:00:04]} 33. Kxg2 {[%clk 0:00:12]}  Nf8 {[%clk 0:00:03]} 34. Rc8 {[%clk 0:00:11]} 1-0


[Site "https://www.chess.com"]

[Event "Titled Tuesday Blitz July 13 2021"]
[White "Yeletsky, Ivan"]
[Black "Bilych, Olexiy"]
[WhiteFideId "24180327"]
[BlackFideId "14156504"]
[WhiteElo "2344"]
[BlackElo "2246"]
[Result "0-1"]
[Round "05"]
[TimeControl "180+1"]
[Date "2021.07.13"]
[WhiteClock "0:00:03"]
[BlackClock "0:00:08"]

1. e4 {[%clk 0:03:00]}  Nf6 {[%clk 0:03:00]} 2. e5 {[%clk 0:03:00]}  Nd5 {[%clk 0:03:00]} 3. d4 {[%clk 0:03:00]}  d6 {[%clk 0:03:00]} 4. Nf3 {[%clk 0:02:59]}  dxe5 {[%clk 0:03:00]} 5. Nxe5 {[%clk 0:02:59]}  g6 {[%clk 0:03:01]} 6. Bc4 {[%clk 0:02:56]}  Be6 {[%clk 0:03:01]} 7. O-O {[%clk 0:02:55]}  Bg7 {[%clk 0:03:00]} 8. Re1 {[%clk 0:02:54]}  O-O {[%clk 0:03:00]} 9. Nd2 {[%clk 0:02:51]}  c6 {[%clk 0:02:59]} 10. c3 {[%clk 0:02:45]}  Nd7 {[%clk 0:02:57]} 11. Nef3 {[%clk 0:02:46]}  N7b6 {[%clk 0:02:39]} 12. Bb3 {[%clk 0:02:42]}  Nc7 {[%clk 0:02:39]} 13. Ne4 {[%clk 0:02:39]}  Bxb3 {[%clk 0:02:25]} 14. axb3 {[%clk 0:02:38]}  Nd7 {[%clk 0:02:22]} 15. Bg5 {[%clk 0:02:32]}  Ne6 {[%clk 0:02:20]} 16. Bh4 {[%clk 0:02:32]}  Nf6 {[%clk 0:02:11]} 17. Nxf6+ {[%clk 0:02:31]}  exf6 {[%clk 0:02:11]} 18. b4 {[%clk 0:02:23]}  Qd7 {[%clk 0:02:10]} 19. Nd2 {[%clk 0:02:20]}  a6 {[%clk 0:01:54]} 20. Ne4 {[%clk 0:02:18]}  g5 {[%clk 0:01:48]} 21. Qg4 {[%clk 0:01:59]}  Qd5 {[%clk 0:01:21]} 22. Ng3 {[%clk 0:01:44]}  Kh8 {[%clk 0:01:03]} 23. Nf5 {[%clk 0:01:42]}  Nf4 {[%clk 0:00:46]} 24. Ne3 {[%clk 0:01:16]}  Qb3 {[%clk 0:00:17]} 25. Bg3 {[%clk 0:01:16]}  Nd3 {[%clk 0:00:13]} 26. Re2 {[%clk 0:01:13]}  Rae8 {[%clk 0:00:11]} 27. h4 {[%clk 0:01:13]}  h6 {[%clk 0:00:11]} 28. Rd1 {[%clk 0:01:02]}  f5 {[%clk 0:00:07]} 29. Qh5 {[%clk 0:00:41]}  Nf4 {[%clk 0:00:07]} 30. Bxf4 {[%clk 0:00:10]}  gxf4 {[%clk 0:00:08]} 31. Nc2 {[%clk 0:00:11]}  Qxb2 {[%clk 0:00:04]} 32. Rxe8 {[%clk 0:00:09]}  Rxe8 {[%clk 0:00:05]} 33. Ne1 {[%clk 0:00:07]}  Qe2 {[%clk 0:00:05]} 34. Qxe2 {[%clk 0:00:06]}  Rxe2 {[%clk 0:00:06]} 35. Nd3 {[%clk 0:00:06]}  f3 {[%clk 0:00:06]} 36. gxf3 {[%clk 0:00:06]}  Bf6 {[%clk 0:00:07]} 37. Nc5 {[%clk 0:00:06]}  b6 {[%clk 0:00:06]} 38. Nxa6 {[%clk 0:00:05]}  Bxh4 {[%clk 0:00:07]} 39. Rf1 {[%clk 0:00:05]}  Rc2 {[%clk 0:00:07]} 40. b5 {[%clk 0:00:02]}  cxb5 {[%clk 0:00:05]} 41. d5 {[%clk 0:00:03]}  Rxc3 {[%clk 0:00:05]} 42. Rd1 {[%clk 0:00:03]}  Rc8 {[%clk 0:00:03]} 43. d6 {[%clk 0:00:03]}  Kg7 {[%clk 0:00:03]} 44. Nc7 {[%clk 0:00:03]}  Bf6 {[%clk 0:00:03]} 45. Nxb5 {[%clk 0:00:03]}  Be5 {[%clk 0:00:03]} 46. d7 {[%clk 0:00:03]}  Rd8 {[%clk 0:00:03]} 47. Rd5 {[%clk 0:00:04]}  Kf6 {[%clk 0:00:03]} 48. Kg2 {[%clk 0:00:04]}  Ke6 {[%clk 0:00:03]} 49. Rd3 {[%clk 0:00:02]}  Rxd7 {[%clk 0:00:04]} 50. Re3 {[%clk 0:00:03]}  Rd5 {[%clk 0:00:04]} 51. Nc3 {[%clk 0:00:02]}  Rc5 {[%clk 0:00:03]} 52. Ne2 {[%clk 0:00:03]}  Kf6 {[%clk 0:00:04]} 53. f4 {[%clk 0:00:03]}  Bd6 {[%clk 0:00:04]} 54. Rh3 {[%clk 0:00:03]}  Kg6 {[%clk 0:00:04]} 55. Rg3+ {[%clk 0:00:03]}  Kf6 {[%clk 0:00:05]} 56. Rh3 {[%clk 0:00:03]}  Bf8 {[%clk 0:00:05]} 57. Rb3 {[%clk 0:00:02]}  b5 {[%clk 0:00:06]} 58. Nd4 {[%clk 0:00:03]}  Rc4 {[%clk 0:00:06]} 59. Nxb5 {[%clk 0:00:02]}  Rxf4 {[%clk 0:00:07]} 60. Nc7 {[%clk 0:00:02]}  Rg4+ {[%clk 0:00:07]} 61. Kf3 {[%clk 0:00:02]}  Kg6 {[%clk 0:00:08]} 62. Nd5 {[%clk 0:00:02]}  Bg7 {[%clk 0:00:07]} 63. Rb6+ {[%clk 0:00:01]}  Kg5 {[%clk 0:00:07]} 64. Ne3 {[%clk 0:00:02]}  Bd4 {[%clk 0:00:07]} 65. Ke2 {[%clk 0:00:03]}  Bxb6 {[%clk 0:00:08]} 66. Nxg4 {[%clk 0:00:03]}  fxg4 {[%clk 0:00:08]} 0-1


[Site "https://www.chess.com"]

[Event "Titled Tuesday Blitz July 13 2021"]
[White "Zong, Davis"]
[Black "Bartel, Michal"]
[WhiteFideId "30903955"]
[BlackFideId "1119257"]
[WhiteElo "2389"]
[BlackElo "2271"]
[Result "1-0"]
[Round "05"]
[TimeControl "180+1"]
[Date "2021.07.13"]
[WhiteClock "0:01:02"]
[BlackClock "0:02:15"]

1. d4 {[%clk 0:03:00]}  Nf6 {[%clk 0:02:58]} 2. c4 {[%clk 0:03:01]}  c5 {[%clk 0:02:59]} 3. d5 {[%clk 0:03:01]}  e6 {[%clk 0:02:59]} 4. Nc3 {[%clk 0:03:00]}  exd5 {[%clk 0:02:59]} 5. cxd5 {[%clk 0:03:01]}  d6 {[%clk 0:02:59]} 6. e4 {[%clk 0:03:01]}  g6 {[%clk 0:02:59]} 7. Nf3 {[%clk 0:03:01]}  Bg7 {[%clk 0:03:00]} 8. Bd3 {[%clk 0:03:01]}  O-O {[%clk 0:03:00]} 9. O-O {[%clk 0:03:02]}  Re8 {[%clk 0:02:59]} 10. Nd2 {[%clk 0:02:59]}  Nbd7 {[%clk 0:02:58]} 11. Nc4 {[%clk 0:02:47]}  Nb6 {[%clk 0:02:58]} 12. Re1 {[%clk 0:02:36]}  Nxc4 {[%clk 0:02:56]} 13. Bxc4 {[%clk 0:02:37]}  a6 {[%clk 0:02:56]} 14. a4 {[%clk 0:02:37]}  Bd7 {[%clk 0:02:55]} 15. Bf4 {[%clk 0:02:35]}  Qc7 {[%clk 0:02:55]} 16. h3 {[%clk 0:02:33]}  b5 {[%clk 0:02:49]} 17. axb5 {[%clk 0:02:31]}  axb5 {[%clk 0:02:49]} 18. Rxa8 {[%clk 0:02:25]}  Rxa8 {[%clk 0:02:50]} 19. Nxb5 {[%clk 0:02:20]}  Bxb5 {[%clk 0:02:50]} 20. Bxb5 {[%clk 0:02:21]}  Qb6 {[%clk 0:02:45]} 21. Qd3 {[%clk 0:02:01]}  Rb8 {[%clk 0:02:40]} 22. Bc6 {[%clk 0:01:59]}  Nh5 {[%clk 0:02:37]} 23. Bxd6 {[%clk 0:01:57]}  Rd8 {[%clk 0:02:37]} 24. Be7 {[%clk 0:01:48]}  Rb8 {[%clk 0:02:37]} 25. e5 {[%clk 0:01:43]}  Qxb2 {[%clk 0:02:34]} 26. e6 {[%clk 0:01:33]}  fxe6 {[%clk 0:02:29]} 27. dxe6 {[%clk 0:01:32]}  Nf4 {[%clk 0:02:27]} 28. Qf3 {[%clk 0:01:26]}  g5 {[%clk 0:02:20]} 29. Bxg5 {[%clk 0:01:22]}  Ng6 {[%clk 0:02:21]} 30. Qf7+ {[%clk 0:01:16]}  Kh8 {[%clk 0:02:21]} 31. e7 {[%clk 0:01:17]}  Nxe7 {[%clk 0:02:21]} 32. Rxe7 {[%clk 0:01:13]}  h6 {[%clk 0:02:21]} 33. Bxh6 {[%clk 0:01:03]}  Qb1+ {[%clk 0:02:15]} 34. Kh2 {[%clk 0:01:03]}  Bxh6 {[%clk 0:02:15]} 35. Qf6+ {[%clk 0:01:02]} 1-0


[Site "https://www.chess.com"]

[Event "Titled Tuesday Blitz July 13 2021"]
[White "Altman, Joshua"]
[Black "Taichman, Ori"]
[WhiteFideId "426210"]
[BlackFideId "2804069"]
[WhiteElo "1945"]
[BlackElo "2227"]
[Result "1/2-1/2"]
[Round "06"]
[TimeControl "180+1"]
[Date "2021.07.13"]
[WhiteClock "0:00:14"]
[BlackClock "0:00:17"]

1. d4 {[%clk 0:03:00]}  Nf6 {[%clk 0:02:59]} 2. c4 {[%clk 0:03:01]}  g6 {[%clk 0:03:00]} 3. Nc3 {[%clk 0:03:01]}  Bg7 {[%clk 0:03:00]} 4. Nf3 {[%clk 0:03:01]}  O-O {[%clk 0:03:01]} 5. Bg5 {[%clk 0:03:02]}  d6 {[%clk 0:02:56]} 6. e3 {[%clk 0:03:02]}  c5 {[%clk 0:02:55]} 7. d5 {[%clk 0:03:02]}  Bg4 {[%clk 0:02:51]} 8. Be2 {[%clk 0:03:01]}  Nbd7 {[%clk 0:02:52]} 9. h3 {[%clk 0:02:59]}  Bxf3 {[%clk 0:02:51]} 10. Bxf3 {[%clk 0:03:00]}  Rb8 {[%clk 0:02:50]} 11. a4 {[%clk 0:03:00]}  a6 {[%clk 0:02:28]} 12. O-O {[%clk 0:02:55]}  Ne8 {[%clk 0:02:27]} 13. e4 {[%clk 0:02:46]}  Nc7 {[%clk 0:02:25]} 14. Be2 {[%clk 0:02:44]}  Bxc3 {[%clk 0:01:38]} 15. bxc3 {[%clk 0:02:43]}  b5 {[%clk 0:01:38]} 16. axb5 {[%clk 0:02:44]}  axb5 {[%clk 0:01:39]} 17. cxb5 {[%clk 0:02:34]}  Nxb5 {[%clk 0:01:40]} 18. Qc2 {[%clk 0:02:22]}  c4 {[%clk 0:01:37]} 19. Bxc4 {[%clk 0:02:17]}  Nc5 {[%clk 0:01:36]} 20. Rfb1 {[%clk 0:02:08]}  Qd7 {[%clk 0:01:13]} 21. Bxb5 {[%clk 0:02:02]}  Rxb5 {[%clk 0:01:14]} 22. Rxb5 {[%clk 0:02:02]}  Qxb5 {[%clk 0:01:15]} 23. Bxe7 {[%clk 0:01:57]}  Re8 {[%clk 0:01:13]} 24. Bxd6 {[%clk 0:01:43]}  Nxe4 {[%clk 0:01:05]} 25. c4 {[%clk 0:01:34]}  Qb6 {[%clk 0:00:51]} 26. c5 {[%clk 0:01:29]}  Qb4 {[%clk 0:00:45]} 27. Qa4 {[%clk 0:01:11]}  Qxa4 {[%clk 0:00:37]} 28. Rxa4 {[%clk 0:01:12]}  Nxd6 {[%clk 0:00:37]} 29. cxd6 {[%clk 0:01:13]}  Rd8 {[%clk 0:00:36]} 30. Ra6 {[%clk 0:01:12]}  f5 {[%clk 0:00:24]} 31. f4 {[%clk 0:01:06]}  Kf7 {[%clk 0:00:23]} 32. Ra7+ {[%clk 0:01:04]}  Kf6 {[%clk 0:00:21]} 33. Ra6 {[%clk 0:00:59]}  Kf7 {[%clk 0:00:20]} 34. Kf2 {[%clk 0:00:59]}  Ke8 {[%clk 0:00:18]} 35. Ke3 {[%clk 0:00:56]}  Kd7 {[%clk 0:00:18]} 36. Kd4 {[%clk 0:00:55]}  Re8 {[%clk 0:00:18]} 37. Ra7+ {[%clk 0:00:51]}  Kxd6 {[%clk 0:00:19]} 38. Rxh7 {[%clk 0:00:51]}  Re4+ {[%clk 0:00:19]} 39. Kd3 {[%clk 0:00:51]}  Rxf4 {[%clk 0:00:19]} 40. Rh6 {[%clk 0:00:48]}  Kxd5 {[%clk 0:00:19]} 41. Rxg6 {[%clk 0:00:48]}  Re4 {[%clk 0:00:18]} 42. Rg5 {[%clk 0:00:35]}  Ke5 {[%clk 0:00:17]} 43. g4 {[%clk 0:00:29]}  Rf4 {[%clk 0:00:16]} 44. Ke3 {[%clk 0:00:24]}  Re4+ {[%clk 0:00:17]} 45. Kf3 {[%clk 0:00:24]}  Rf4+ {[%clk 0:00:18]} 46. Kg3 {[%clk 0:00:24]}  Rf1 {[%clk 0:00:17]} 47. gxf5 {[%clk 0:00:22]}  Rxf5 {[%clk 0:00:15]} 48. Rg8 {[%clk 0:00:22]}  Kf6 {[%clk 0:00:14]} 49. Kh4 {[%clk 0:00:19]}  Kf7 {[%clk 0:00:13]} 50. Ra8 {[%clk 0:00:19]}  Kg7 {[%clk 0:00:13]} 51. Ra7+ {[%clk 0:00:19]}  Kh6 {[%clk 0:00:13]} 52. Ra6+ {[%clk 0:00:18]}  Kg7 {[%clk 0:00:14]} 53. Kg4 {[%clk 0:00:19]}  Rb5 {[%clk 0:00:14]} 54. h4 {[%clk 0:00:18]}  Kg8 {[%clk 0:00:14]} 55. Ra7 {[%clk 0:00:18]}  Rb4+ {[%clk 0:00:15]} 56. Kg5 {[%clk 0:00:18]}  Rb5+ {[%clk 0:00:15]} 57. Kg6 {[%clk 0:00:16]}  Rb6+ {[%clk 0:00:16]} 58. Kg5 {[%clk 0:00:17]}  Rb5+ {[%clk 0:00:17]} 59. Kg6 {[%clk 0:00:14]} 1/2-1/2


[Site "https://www.chess.com"]